Cogmind - Beta 15 @@@ ROGUE MODE // 2025.06.10 @ 11:44:11 Player: puppuppit Result: Destroyed by Shrapnel Trap Performance ------------- Evolutions (0) 0 Regions Visited (3) 600 Robots Destroyed (50) 250 Value Destroyed (677) 677 Prototype IDs (2) 40 Alien Tech Used (0) 0 Bonus (0) 0 TOTAL SCORE: 1567 Bonus ------- None Cogmind --------- Core Integrity 0/250 Matter 247/300 Energy 100/100 System Corruption 5% Temperature Cool (0) Movement Rolling (90) Location -10/Subcaves Parts ------- > --- POWER (1) -------- (None) > --- PROPULSION (2) --- Wheel Compact Wheel > --- UTILITY (2) ------ Large Storage Unit Improved Terrain Scanner > --- WEAPON (2) ------- Light Cannon > --- INVENTORY (15) --- Light Treads Subdweller Monowheel Subdweller Monowheel Subdweller Monowheel Medium Storage Unit Medium Matter Pod (100) EM Pulse Gun Subdweller Laser Subdweller Machine Gun Subdweller Machine Gun Barrage Gun Light Cannon Light Cannon Light Cannon Light Cannon Peak State ------------ > --- POWER ------------ Subdweller Power Source > --- PROPULSION ------- Compact Wheel Compact Wheel > --- UTILITY ---------- Large Storage Unit Improved Terrain Scanner > --- WEAPON ----------- Light Cannon Light Cannon > --- INVENTORY -------- Light Treads Wheel Wheel Subdweller Monowheel Medium Storage Unit Medium Matter Pod Improved Terrain Scanner EM Pulse Gun Subdweller Laser Light Assault Rifle Subdweller Machine Gun Light Cannon Light Cannon Light Cannon Light Cannon [Rating: 12] Favorites ----------- Power Ion Engine Engine Ion Engine Propulsion Light Treads Treads Light Treads Wheel Compact Wheel Utility Large Storage Unit Device Improved Terrain Scanner Storage Large Storage Unit Processor Machine Analyzer Weapon Light Cannon Energy Gun EM Pulse Gun Ballistic Gun Light Assault Rifle Ballistic Cannon Light Cannon Build | -11 -10 -10 -10 ------- Run | Yrd Mat Min Sub Slots Evolved . | . . . . Power . | . . . . Propulsion . | . . . . Utility . | . . . . Weapon . | . . . . Parts Attached 20 | 6 6 2 6 Power 2 | 1 . . 1 Engine 2 | 1 . . 1 Core . | . . . . Reactor . | . . . . Propulsion 6 | 2 . . 4 Treads 3 | 2 . . 1 Leg . | . . . . Wheel 3 | . . . 3 Hover . | . . . . Flight . | . . . . Utility 8 | 1 4 2 1 Device 3 | . . 2 1 Storage 4 | 1 3 . . Processor 1 | . 1 . . Hackware . | . . . . Protection . | . . . . Artifact . | . . . . Weapon 4 | 2 2 . . Energy Gun 1 | 1 . . . Energy Cannon . | . . . . Ballistic Gun 1 | 1 . . . Ballistic Cannon 2 | . 2 . . Launcher . | . . . . Special Weapon . | . . . . Impact Weapon . | . . . . Slashing Weapon . | . . . . Piercing Weapon . | . . . . Special Melee Weapon . | . . . . Unidentified Prototypes . | . . . . Parts Lost 7 | . 1 1 5 Power 1 | . . . 1 Propulsion 3 | . . . 3 Utility 1 | . . 1 . Weapon 2 | . 1 . 1 Highest Loss Streak 2 | . 1 1 2 To Critical Strikes . | . . . . Average Backups 10 | 2 7 12 14 Power . | . . . . Propulsion 2 | 1 1 2 3 Utility 2 | . 1 3 2 Weapon 5 | . 3 6 8 Tool/Special . | . . . . Unused Backups 19 | . 2 1 16 Power 1 | . . 1 . Propulsion 6 | . 2 . 4 Utility 2 | . . . 2 Weapon 10 | . . . 10 Tool/Special . | . . . . Average Slot Usage (%) 97 | . 96 99 97 Engine 14 | . 14 14 14 Treads 22 | . 28 28 . Wheel 5 | . . . 27 Device 7 | . . 12 14 Storage 14 | . 14 14 14 Processor 4 | . 10 1 . Energy Gun 3 | . 9 . . Ballistic Gun 2 | . 7 . . Ballistic Cannon 20 | . 11 28 25 Peak Build Rating 12 | 6 10 10 12 Average Rating 9 | 4 8 9 11 On Entrance 6 | . 6 10 10 Naked Turns . | . . . . Heaviest Build 32 | 13 31 32 32 Greatest Support 40 | 40 40 40 40 Greatest Overweight (x) 1 | . . . 1 Average Overweight (x) . | . . . . Largest Inventory Capacity 15 | 8 15 15 15 Average Capacity 12 | 7 9 15 15 Most Carried 15 | 4 11 14 15 Average Carried 10 | 2 7 12 14 Final Capacity 15 | 8 15 15 15 Final Carried 15 | 4 11 14 15 Class Distribution -------------------- 79% | Mutant 20% | Scavenger-Mutant Dominant Class ---------------- Mutant | -10/Materials Mutant | -10/Mines Scavenger-Mutant | -10/Subcaves Resources | -11 -10 -10 -10 ----------- Run | Yrd Mat Min Sub Matter Collected 1439 | 199 485 371 384 Remotely . | . . . . Salvage Created 1469 | 147 818 366 138 Parts 103 | 11 58 22 12 Haulers Intercepted 2 | . 2 . . Recyclers Shooed 5 | . 3 2 . Parts Field Recycled . | . . . . Retrieved Matter . | . . . . Parts Self-Destructed 9 | . . . 9 Prevented . | . . . . Kills | -11 -10 -10 -10 ------- Run | Yrd Mat Min Sub Combat Hostiles Destroyed 20 | . 8 7 5 Guns 3 | . 3 . . Cannons 17 | . 5 7 5 Classes Destroyed 12 | 3 7 1 1 Worker 10 | 2 6 2 . Builder 4 | . 4 . . Tunneler 7 | 2 2 3 . Hauler 2 | . 2 . . Recycler 6 | 1 2 3 . Mechanic 1 | . 1 . . Operator 1 | . 1 . . Watcher 3 | . 3 . . Swarmer 5 | . 5 . . Grunt 7 | . 3 3 1 Subdweller 4 | . . . 4 Assembled 4 | . . 4 . Best Kill Streak 8 | 3 8 3 2 Combat Bots Only 3 | . 3 2 2 Max Kills in Single Turn 2 | 2 1 2 1 Gunslinging . | . . . . Exploded . | . . . . Melee . | . . . . Uniques/NPCs Destroyed . | . . . . Combat | -11 -10 -10 -10 -------- Run | Yrd Mat Min Sub Hostile Shots Fired 74 | . 45 8 21 Missed 23 | . 16 1 6 Hits 51 | . 29 7 15 Melee 4 | . . 4 . Projectile 47 | . 29 3 15 Damage Taken 1060 | . 509 131 420 Core 269 | . 80 37 152 Absorbed by Shields . | . . . . Core Remaining (%) 100 | 100 . . . Volleys Fired 187 | 14 85 40 48 Largest 2 | 2 2 2 2 Hottest 70 | 60 70 60 60 Shots Fired 373 | 28 170 80 95 Gun 141 | 28 113 . . Cannon 232 | . 57 80 95 Launcher . | . . . . Special . | . . . . Kinetic 299 | 14 110 80 95 Thermal . | . . . . Explosive . | . . . . Electromagnetic 74 | 14 60 . . Robot Hit Streak 11 | 11 11 5 7 Robot Miss Streak 4 | 2 4 2 2 Penetration Max . | . . . . Secondary Targets . | . . . . Shots Hit Robots 166 | 17 84 35 30 Core Hits 70 | 6 35 19 10 Critical Kills . | . . . . Critical Parts Destroyed 1 | . 1 . . Critical Strikes 6 | . 4 1 1 Destroy 1 | . 1 . . Blast 4 | . 2 1 1 Corrupt 1 | . 1 . . Melee Attacks . | . . . . Impact . | . . . . Slashing . | . . . . Piercing . | . . . . Sneak Attacks . | . . . . Combat Hostiles . | . . . . Follow-up Attacks . | . . . . Damage Inflicted 2641 | 238 1266 642 495 Guns 922 | 166 756 . . Cannons 1572 | . 435 642 495 Explosions 147 | 72 75 . . Melee . | . . . . Ramming . | . . . . Kinetic 1774 | 34 603 642 495 Thermal 147 | 72 75 . . Explosive . | . . . . Electromagnetic 720 | 132 588 . . Impact . | . . . . Slashing . | . . . . Piercing . | . . . . Highest Corruption 5 | . . 5 5 Average Corruption 5 | . . 5 5 Corruption Purged . | . . . . Corruption Blocked . | . . . . Effects 20 | . . 4 16 Message Errors 3 | . . . 3 Matter Fused 3 | . . 1 2 Heat Flow Errors 2 | . . 1 1 Energy Discharges 5 | . . 1 4 Parts Fused 1 | . . 1 . Data Loss (minor) 3 | . . . 3 Data Loss (major) 2 | . . . 2 Weapon Failures 1 | . . . 1 Overload Shots . | . . . . Overflow Damage 49 | 7 27 15 . Projectiles 42 | . 27 15 . Explosions 7 | 7 . . . Melee . | . . . . Knockbacks 24 | . 10 6 8 Impact . | . . . . Kinetic 23 | . 9 6 8 Secondary 1 | . 1 . . Self-Inflicted Damage 59 | . 59 . . Shots 2 | . 2 . . Rammed . | . . . . Targets Rammed . | . . . . Kicked . | . . . . Crushed . | . . . . Highest Temperature 172 | 40 94 171 172 Average Temperature 30 | 22 26 48 92 Received Heat Transfer 144 | . 96 18 30 Siege Activations . | . . . . Martial Activations . | . . . . Shielding Activations . | . . . . Robots Disrupted . | . . . . Combat Hostiles . | . . . . Robots Corrupted . | . . . . Combat Hostiles . | . . . . Parts Fried 2 | 1 1 . . Impact Corruptions . | . . . . Robots Melted . | . . . . Combat Hostiles . | . . . . Parts Melted . | . . . . Heat Transferred 200 | 100 100 . . Parts Sabotaged . | . . . . Parts Stolen . | . . . . Parts Stripped . | . . . . Power Chain Reactions 4 | 2 2 . . Alert | -11 -10 -10 -10 ------- Run | Yrd Mat Min Sub Maximum Alert Level . | . . . . Low Security (%) 100 | 100 100 100 . Level 1 . | . . . . Level 2 . | . . . . Level 3 . | . . . . Level 4 . | . . . . Level 5 . | . . . . High Security . | . . . . Max Security . | . . . . Peak Influence 164 | 10 164 48 . Initial 48 | . . 48 . Average 18 | 2 33 4 . Influence Increases 561 | 25 391 115 30 Destroy 0b10 Robot/C 240 | . 160 60 20 Destroy 0b10 Robot/NC 170 | 25 105 40 . Destroy Leader 60 | . 50 . 10 Successful Hack 13 | . 13 . . Disable Machine 30 | . 15 15 . Destroy Structure 3 | . 3 . . Lose Combat Pursuer 45 | . 45 . . Influence Decreases 561 | 25 266 240 30 Entered New Map 77 | . . 77 . Time Decay 448 | 25 260 153 10 Lost Part 36 | . 6 10 20 Squads Dispatched 2 | . 2 . . Investigation . | . . . . Extermination . | . . . . Reinforcement 2 | . 2 . . Assault . | . . . . Garrison . | . . . . Intercept . | . . . . Searches Triggered . | . . . . Construction Impeded . | . . . . Haulers Reinforced . | . . . . Active Scanning Responses . | . . . . Cargo Convoy Interrupts . | . . . . Stealth | -11 -10 -10 -10 --------- Run | Yrd Mat Min Sub Distress Signals 2 | . 2 . . Communications Jammed . | . . . . Distress Signals . | . . . . Times Spotted 41 | . 28 7 6 Peak Tracking Total 4 | . 4 3 2 Tactical Retreats 2 | . 1 1 . Traps | -11 -10 -10 -10 ------- Run | Yrd Mat Min Sub Traps Triggered 3 | . . . 3 Indirectly . | . . . . Trap Hack Attempts . | . . . . Triggered . | . . . . Disarmed . | . . . . Reprogrammed . | . . . . Reused . | . . . . Traps Extracted . | . . . . Installed . | . . . . Triggered . | . . . . Machines | -11 -10 -10 -10 ---------- Run | Yrd Mat Min Sub Machines Disabled 2 | . 1 1 . Max in Single Turn 1 | . 1 1 . Machines Repaired . | . . . . Machines Dismantled . | . . . . Machines Sabotaged . | . . . . Overloaded Fab Kills . | . . . . Hacking | -11 -10 -10 -10 --------- Run | Yrd Mat Min Sub Machines Accessed 5 | . 5 . . Terminals 5 | . 5 . . Fabricators . | . . . . Repair Stations . | . . . . Recycling Units . | . . . . Scanalyzers . | . . . . Garrison Access . | . . . . Total Hacks 18 | . 18 . . Successful 7 | . 7 . . Failed 10 | . 10 . . Catastrophic . | . . . . Database Lockouts 1 | . 1 . . Manual 18 | . 18 . . Terminals 18 | . 18 . . Fabricators . | . . . . Repair Stations . | . . . . Recycling Units . | . . . . Scanalyzers . | . . . . Garrison Access . | . . . . Terminal Hacks 3 | . 3 . . Robot Analysis 1 | . 1 . . Prototype ID Bank 1 | . 1 . . Terminal Index 1 | . 1 . . Fabricator Hacks . | . . . . Repair Station Hacks . | . . . . Recycling Unit Hacks . | . . . . Scanalyzer . | . . . . Garrison Access Hacks . | . . . . Unauthorized Hacks 4 | . 4 . . Terminals 4 | . 4 . . Botnet 4 | . 4 . . Fabricators . | . . . . Repair Stations . | . . . . Recycling Units . | . . . . Scanalyzers . | . . . . Garrison Access . | . . . . Data Cores Recovered . | . . . . Used . | . . . . Hacking Detections 5 | . 5 . . Full Trace Events 1 | . 1 . . Feedback Events . | . . . . Feedback Blocked . | . . . . Robot Schematics Acquired . | . . . . Robots Built . | . . . . Authchips . | . . . . Time . | . . . . Total Robot Build Rating . | . . . . Part Schematics Acquired . | . . . . Parts Built . | . . . . Authchips . | . . . . Time . | . . . . Total Part Build Rating . | . . . . Parts Repaired . | . . . . Time . | . . . . Parts Recycled . | . . . . Recycled Matter . | . . . . Retrieved Matter . | . . . . Retrieved Components . | . . . . Parts Scanalyzed . | . . . . Part Schematics Acquired . | . . . . Parts Damaged . | . . . . Bothacking | -11 -10 -10 -10 ------------ Run | Yrd Mat Min Sub Used RIF Installer . | . . . . Robots Hacked . | . . . . Non-combat . | . . . . Combat . | . . . . Robot Hacks Applied . | . . . . Relay Couplers Released . | . . . . Fabnet Peak Effective % . | . . . . Robots Rewired . | . . . . Allies Hacked . | . . . . Hacks Repelled . | . . . . Allies | -11 -10 -10 -10 -------- Run | Yrd Mat Min Sub Total Allies . | . . . . Largest Group . | . . . . Highest-Rated Group . | . . . . Highest-Rated Ally . | . . . . Total Orders . | . . . . Ally Attacks . | . . . . Total Damage . | . . . . Kills . | . . . . Allies Corrupted . | . . . . Allies Melted . | . . . . Intel | -11 -10 -10 -10 ------- Run | Yrd Mat Min Sub Active Infowar (turns) 2513 | . 855 1066 592 Terrain 1539 | . . 947 592 Machine Analysis 974 | . 855 119 . Robot Analysis Total 1 | . 1 . . Derelict Logs Recovered 4 | . . 3 1 Drone Launches . | . . . . Drone Recoveries . | . . . . Exploration | -11 -10 -10 -10 ------------- Run | Yrd Mat Min Sub Turns Passed 2901 | 122 1113 1074 592 Spaces Moved 1506 | 47 526 519 414 Core 4 | 4 . . . Treads 1095 | 43 526 519 7 Legs . | . . . . Wheels 407 | . . . 407 Hover . | . . . . Flight . | . . . . Fastest Speed 50 | 50 160 160 100 Average Speed 143 | 150 160 160 102 Slowest Speed 240 | 160 160 160 240 Overloaded Moves . | . . . . Propulsion Burnouts . | . . . . Robots Hopped . | . . . . Potential Cave-ins . | . . . . Cave-ins Triggered . | . . . . Exploration Rate (%) 41 | 4 70 69 22 Regions Visited 3 Branch Regions 2 Pre-discovered Areas . | . . . . Known Exits Taken . | . . . . Unknown Exits Taken 3 | 1 1 1 . Scrap Searched 2 | . . 2 . Spaces Dug . | . . . . Terrain Destroyed 10 | 8 2 . . Melee . | . . . . Projectile . | . . . . AOE 10 | 8 2 . . Terrain Rammed . | . . . . Walls Destroyed . | . . . . Machines Disabled . | . . . . Actions | -11 -10 -10 -10 --------- Run | Yrd Mat Min Sub Total 1883 | 70 641 683 489 Wait 131 | . 8 116 7 Move 1503 | 46 525 518 414 Hop . | . . . . Pick Up 29 | 4 10 6 9 Fast Attach 8 | 6 2 . . Attach 5 | . 1 1 3 Detach 1 | . 1 . . Swap 7 | . 3 1 3 Drop 12 | . 6 1 5 Fire 187 | 14 85 40 48 Melee . | . . . . Ram . | . . . . Kick . | . . . . Crush . | . . . . Escape Stasis . | . . . . Rewire . | . . . . Trap . | . . . . Miscellaneous . | . . . . Route ------- -11/Scrapyard -10/Materials (discovered 4 exits: [*Mat x2] / [*Min x2]) -10/Mines (discovered 4 exits: [*Mat x2] / [*Exi] / [*Sub]) -10/Subcaves (discovered 1 exit: Rec) History --------- Turn | Location | Event 7 | -11/Scrapyard | Discovered new exit (range 15) 123 | -11/Scrapyard | Entered Materials 269 | -10/Materials | Discovered new exit (range 16) 292 | -10/Materials | Central database locked down 314 | -10/Materials | Build established: Mutant 546 | -10/Materials | Discovered new exit (range 15) 724 | -10/Materials | Discovered new exit (range 6) 1156 | -10/Materials | Discovered new exit (range 13) 1236 | -10/Materials | Entered Mines 1256 | -10/Mines | Learned Materials stockpile data 1412 | -10/Mines | Discovered new exit (range 14) 1582 | -10/Mines | Discovered new exit (range 9) 1663 | -10/Mines | Learned Materials terminal intel 1750 | -10/Mines | Excavation squad dispatched 1750 | -10/Mines | A large section of the Mines collapsed 2256 | -10/Mines | Deemed a non-threat by the Exiles lab entrance 2257 | -10/Mines | Discovered new exit (range 5) 2305 | -10/Mines | Discovered new exit (range 4) 2310 | -10/Mines | Entered Subcaves 2311 | -10/Subcaves | Ambushed by Subdwellers from Twisted Machinery 2311 | -10/Subcaves | Approached by a straggling Scientist 2312 | -10/Subcaves | Identified exit to Recycling 2422 | -10/Subcaves | Core integrity fell below 50% 2463 | -10/Subcaves | Core integrity fell below 20% 2518 | -10/Subcaves | Shifting Twisted Machinery released Sub. Machine Gun 2617 | -10/Subcaves | Build established: Scavenger-Mutant 2902 | -10/Subcaves | Destroyed by Shrapnel Trap Last Messages --------------- 02782_ Lgt. Cannon destroyed. 02791_ Acquired 41 matter. 02793_ Acquired 1 matter. 02805_ Subatomizers dissect the Sub. Optics. 02807_ System corrupted: Component data lost. 02813_ Acquired 34 matter. 02814_ Acquired 31 matter. 02816_ Acquired Sub. Monowheel. 02819_ Subatomizers dissect the Sub. Optics, destroying it. 02832_ Subatomizers dissect the Sub. Power Source. 02842_ JH FO